fUST/lending_fUST_20250505
["ID","MTS","AMOUNT","RATE_DAILY","PERIOD"]
[359951105,1746445856535,-400.0,0.0003589,14]
[359951107,1746445856544,-1500.0,0.0003589,31]
[359951108,1746445856553,-400.0,0.0003589,14]
[359951110,1746445856563,-810.48,0.0003589,14]
[359951112,1746445856572,-400.0,0.0003589,14]
[359951113,1746445856582,-400.0,0.0003589,14]
[359951115,1746445856591,-1328.47,0.0003589,14]
[359951117,1746445856600,-552.28,0.0003589,14]
[359951118,1746445856609,-400.0,0.0003589,14]
[359951120,1746445856618,-400.0,0.0003589,14]
[359951122,1746445856627,-991.14,0.0003589,14]
[359951123,1746445856636,-400.0,0.0003589,14]
[359951125,1746445856645,-400.0,0.0003589,14]
[359951126,1746445856654,-1713.06,0.0003589,14]
[359951128,1746445856663,-452.4,0.0003589,14]
[359951130,1746445856672,-407.99,0.0003589,14]
[359951131,1746445856681,-741.51,0.0003589,14]
[359951133,1746445856691,-400.0,0.0003589,14]
[359951135,1746445856700,-400.0,0.0003589,14]
[359951136,1746445856710,-904.9,0.0003589,14]
[359951138,1746445856720,-400.0,0.0003589,14]
[359951140,1746445856729,-400.0,0.0003589,14]
[359951141,1746445856738,-400.0,0.0003589,14]
[359951143,1746445856748,-400.0,0.0003589,14]
[359951145,1746445856758,-400.0,0.0003589,14]
[359951146,1746445856767,-400.0,0.0003589,14]
[359951148,1746445856776,-400.0,0.0003589,14]
[359951150,1746445856787,-400.0,0.0003589,14]
[359951152,1746445856796,-400.0,0.0003589,14]
[359951153,1746445856806,-400.0,0.0003589,14]
[359951155,1746445856816,-461.76,0.0003589,14]
[359951156,1746445856825,-400.0,0.0003589,14]
[359951158,1746445856835,-400.0,0.0003589,14]
[359951160,1746445856843,-400.0,0.0003589,14]
[359951161,1746445856853,-400.0,0.0003589,14]
[359951163,1746445856863,-400.0,0.0003589,14]
[359951165,1746445856872,-400.0,0.0003589,14]
[359951166,1746445856881,-400.0,0.0003589,14]
[359951168,1746445856891,-400.0,0.0003589,14]
[359951170,1746445856901,-400.0,0.0003589,14]
[359951171,1746445856910,-400.0,0.0003589,14]
[359951173,1746445856919,-151.25648963,0.0003589,14]
[359951175,1746445856929,-400.0,0.0003589,14]
[359951176,1746445856938,-400.0,0.0003589,14]
[359951178,1746445856947,-512.28050981,0.0003589,14]
[359951179,1746445856956,-401.37635423,0.0003589,14]
[359951181,1746445856966,-859.63,0.0003589,14]
[359951183,1746445856976,-400.0,0.0003589,14]
[359951184,1746445856985,-400.0,0.0003589,14]
[359951186,1746445856994,-400.0,0.0003589,14]
[359951188,1746445857003,-377.07475999,0.0003589,14]
[359951189,1746445857012,-409.25570381,0.0003589,14]
[359951191,1746445857022,-400.0,0.0003589,14]
[359951193,1746445857032,-400.0,0.0003589,14]
[359951194,1746445857042,-400.0,0.0003589,14]
[359951196,1746445857051,-400.0,0.0003589,14]
[359951198,1746445857061,-1047.07,0.0003589,14]
[359951199,1746445857071,-400.0,0.0003589,14]
[359951201,1746445857080,-402.98115231,0.0003589,14]
[359951203,1746445857089,-400.0,0.0003589,14]
[359951204,1746445857098,-440.38,0.0003589,14]
[359951206,1746445857107,-400.0,0.0003589,14]
[359951208,1746445857116,-400.0,0.0003589,14]
[359951209,1746445857125,-400.0,0.0003589,14]
[359951211,1746445857135,-400.0,0.0003589,14]
[359951213,1746445857144,-847.52,0.0003589,14]
[359951214,1746445857154,-400.69511377,0.0003589,14]
[359951216,1746445857163,-400.0,0.0003589,14]
[359951218,1746445857172,-400.0,0.0003589,14]
[359951219,1746445857181,-400.0,0.0003589,14]
[359951222,1746445857191,-482.5,0.0003589,14]
[359951224,1746445857200,-400.0,0.0003589,14]
[359951225,1746445857209,-400.0,0.0003589,14]
[359951227,1746445857218,-584.75,0.0003589,14]
[359951229,1746445857227,-2778.11,0.0003589,2]
[359951231,1746445857235,-400.0,0.0003589,14]
[359951233,1746445857245,-400.0,0.0003589,14]
[359951234,1746445857254,-471.15,0.0003589,14]
[359951235,1746445857262,-622.12,0.0003589,14]
[359951236,1746445857271,-280.29936029,0.0003589,14]
[359951237,1746445857281,-313.28267495,0.0003589,14]
[359951238,1746445857291,-402.48222823,0.0003589,14]
[359951239,1746445857300,-547.45,0.0003589,14]
[359951240,1746445857310,-400.0,0.0003589,14]
[359951241,1746445857319,-400.0,0.0003589,14]
[359951244,1746445857446,-400.0,0.0003589,14]
[359951246,1746445857456,-2823.51,0.0003589,14]
[359951248,1746445857466,-400.0,0.0003589,14]
[359951250,1746445857475,-407.43329002,0.0003589,14]
[359951252,1746445857484,-200.0,0.0003589,14]
[359951254,1746445857493,-205.89412048,0.0003589,14]
[359951256,1746445857503,-400.0,0.0003589,14]
[359951258,1746445857512,-400.0,0.0003589,14]
[359951260,1746445857522,-151.0,0.0003589,14]
[359951262,1746445857531,-400.0,0.0003589,14]
[359951264,1746445857540,-151.0,0.0003589,14]
[359951266,1746445857550,-400.0,0.0003589,14]
[359951268,1746445857559,-151.0,0.0003589,14]
[359951270,1746445857569,-400.0,0.0003589,14]
[359951272,1746445857578,-407.10330426,0.0003589,14]
[359951274,1746445857587,-792.06,0.0003589,14]
[359951276,1746445857596,-6920.73,0.0003589,14]
[359951278,1746445857605,-594.03,0.0003589,14]
[359951280,1746445857614,-480.93,0.0003589,14]
[359951282,1746445857624,-400.0,0.0003589,14]
[359951284,1746445857633,-544.87565629,0.0003589,14]
[359951286,1746445857641,-400.0,0.0003589,14]
[359951288,1746445857650,-400.0,0.0003589,14]
[359951289,1746445857660,-400.0,0.0003589,14]
[359951292,1746445857669,-9551.19,0.0003589,14]
[359951294,1746445857678,-2548.32,0.0003589,14]
[359951296,1746445857689,-507.273617,0.0003589,14]
[359951298,1746445857699,-197.036821,0.0003589,14]
[359951300,1746445857708,-197.036821,0.0003589,14]
[359951302,1746445857717,-197.036821,0.0003589,14]
[359951304,1746445857726,-400.0,0.0003589,14]
[359951305,1746445857735,-197.036821,0.0003589,14]
[359951307,1746445857744,-400.0,0.0003589,14]
[359951309,1746445857754,-197.036821,0.0003589,14]
[359951311,1746445857763,-677.11,0.0003589,14]
[359951313,1746445857772,-197.036819,0.0003589,14]
[359951315,1746445857781,-210.49084497,0.0003589,14]
[359951317,1746445857790,-400.0,0.0003589,14]
[359951319,1746445857799,-271.153695,0.0003589,14]
[359951321,1746445857808,-254.658006,0.0003589,14]
[359951323,1746445857817,-254.658006,0.0003589,14]
[359951325,1746445857827,-254.658006,0.0003589,14]
[359951327,1746445857836,-548.79371066,0.0003589,14]
[359951329,1746445857846,-163.42048272,0.0003589,14]
[359951331,1746445857856,-400.0,0.0003589,14]
[359951333,1746445857865,-400.0,0.0003589,14]
[359951335,1746445857875,-254.658006,0.0003589,14]
[359951337,1746445857885,-254.658006,0.0003589,14]
[359951339,1746445857895,-254.658005,0.0003589,14]
[359951341,1746445857904,-400.0,0.0003589,14]
[359951343,1746445857914,-400.0,0.0003589,14]
[359951345,1746445857923,-400.0,0.0003589,14]
[359951347,1746445857933,-400.0,0.0003589,14]
[359951349,1746445857942,-3529.4,0.0003589,14]
[359951351,1746445857951,-400.0,0.0003589,14]
[359951353,1746445857960,-400.0,0.0003589,14]
[359951355,1746445857971,-400.0,0.0003589,14]
[359951357,1746445857980,-400.0,0.0003589,14]
[359951359,1746445857990,-402.70237286,0.0003589,14]
[359951361,1746445857999,-400.0,0.0003589,14]
[359951363,1746445858008,-569.26553826,0.0003589,14]
[359951365,1746445858018,-400.0,0.0003589,14]
[359951367,1746445858027,-400.0,0.0003589,14]
[359951369,1746445858037,-400.0,0.0003589,14]
[359951371,1746445858046,-3496.52,0.0003589,14]
[359951373,1746445858055,-2182.36,0.0003589,14]
[359951375,1746445858065,-1611.18,0.0003589,14]
[359951377,1746445858075,-2637.47,0.0003589,14]
[359951379,1746445858084,-400.0,0.0003589,14]
[359951382,1746445858094,-400.0,0.0003589,14]
[359951384,1746445858104,-400.0,0.0003589,14]
[359951385,1746445858114,-400.0,0.0003589,14]
[359951387,1746445858123,-400.0,0.0003589,14]
[359951390,1746445858134,-400.0,0.0003589,14]
[359951392,1746445858143,-400.0,0.0003589,14]
[359951394,1746445858153,-506.38463056,0.0003589,14]
[359951396,1746445858162,-438.46,0.0003589,14]
[359951398,1746445858171,-400.0,0.0003589,14]
[359951400,1746445858182,-400.0,0.0003589,14]
[359951402,1746445858191,-517.57950928,0.0003589,14]
[359951404,1746445858201,-400.0,0.0003589,14]
[359951406,1746445858211,-458.16,0.0003589,14]
[359951408,1746445858220,-400.0,0.0003589,14]
[359951410,1746445858230,-400.0,0.0003589,14]
[359951412,1746445858239,-526.22,0.0003589,14]
[359951414,1746445858249,-1935.8,0.0003589,14]
[359951416,1746445858258,-400.0,0.0003589,14]
[359951418,1746445858268,-86.83573513,0.0003589,14]
[359951454,1746445858614,-150.401,0.00035583,2]
[359951456,1746445858624,-400.0,0.00035616,14]
[359951458,1746445858633,-400.0,0.00035616,14]
[359951460,1746445858642,-3704.99426487,0.0003589,14]
[359951462,1746445858652,-400.0,0.0003589,14]
[359951464,1746445858661,-400.0,0.0003589,14]
[359951466,1746445858671,-1411.13,0.0003589,14]
[359951468,1746445858680,-400.0,0.0003589,14]
[359951470,1746445858689,-568.68,0.0003589,14]
[359951472,1746445858699,-400.0,0.0003589,14]
[359951474,1746445858708,-400.0,0.0003589,14]
[359951476,1746445858717,-400.0,0.0003589,14]
[359951478,1746445858726,-1696.48,0.0003589,14]
[359951480,1746445858735,-1459.98,0.0003589,14]
[359951482,1746445858744,-1182.54,0.0003589,14]
[359951484,1746445858754,-403.20428432,0.0003589,14]
[359951486,1746445858763,-833.33,0.0003589,14]
[359951488,1746445858772,-400.0,0.0003589,14]
[359951490,1746445858782,-2159.19,0.0003589,14]
[359951492,1746445858791,-1525.71,0.0003589,14]
[359951494,1746445858800,-232.15029405,0.0003589,14]
[359951496,1746445858809,-530.69,0.0003589,14]
[359951498,1746445858819,-400.0,0.0003589,14]
[359951500,1746445858828,-400.0,0.0003589,14]
[359951501,1746445858837,-213.63879946,0.0003589,14]
[359951504,1746445858847,-466.42,0.0003589,14]
[359951506,1746445858856,-400.0,0.0003589,14]
[359951508,1746445858866,-400.0,0.0003589,14]
[359951510,1746445858875,-400.0,0.0003589,14]
[359951512,1746445858884,-400.0,0.0003589,14]
[359951514,1746445858894,-944.17,0.0003589,14]
[359951516,1746445858904,-400.0,0.0003589,14]
[359951518,1746445858913,-406.70048293,0.0003589,14]
[359951520,1746445858923,-604.59,0.0003589,14]
[359951522,1746445858932,-400.0,0.0003589,14]
[359951524,1746445858941,-400.0,0.0003589,14]
[359951526,1746445858950,-2779.93,0.0003589,14]
[359951528,1746445858959,-400.0,0.0003589,14]
[359951530,1746445858968,-921.3,0.0003589,14]
[359951532,1746445858977,-1539.88,0.0003589,14]
[359951534,1746445858987,-400.0,0.0003589,14]
[359951536,1746445858996,-400.0,0.0003589,14]
[359951538,1746445859005,-467.76724636,0.0003589,14]
[359951540,1746445859014,-400.0,0.0003589,14]
[359951542,1746445859023,-400.0,0.0003589,14]
[359951544,1746445859032,-1217.85,0.0003589,14]
[359951546,1746445859042,-4454.88,0.0003589,14]
[359951548,1746445859051,-400.0,0.0003589,14]
[359951550,1746445859060,-401.7,0.0003589,14]
[359951552,1746445859070,-400.0,0.0003589,14]
[359951554,1746445859079,-1152.62,0.0003589,14]
[359951556,1746445859088,-400.0,0.0003589,14]
[359951558,1746445859097,-151.0,0.0003589,14]
[359951560,1746445859106,-151.0,0.0003589,14]
[359951562,1746445859115,-151.0,0.0003589,14]
[359951564,1746445859124,-400.0,0.0003589,14]
[359951566,1746445859133,-400.0,0.0003589,14]
[359951567,1746445859142,-1231.44,0.0003589,14]
[359951569,1746445859152,-400.0,0.0003589,14]
[359951571,1746445859162,-2071.13,0.0003589,14]
[359951573,1746445859171,-2310.8,0.0003589,14]
[359951575,1746445859181,-446.19,0.0003589,14]
[359951577,1746445859190,-506.19,0.0003589,14]
[359951579,1746445859199,-400.0,0.0003589,14]
[359951581,1746445859209,-1850.89,0.0003589,14]
[359951583,1746445859218,-151.0,0.0003589,14]
[359951585,1746445859228,-151.0,0.0003589,14]
[359951587,1746445859237,-441.05006384,0.0003589,14]
[359951589,1746445859246,-400.0,0.0003589,14]
[359951591,1746445859255,-945.45,0.0003589,14]
[359951593,1746445859264,-564.65,0.0003589,14]
[359951595,1746445859273,-443.25,0.0003589,14]
[359951597,1746445859282,-4805.41,0.0003589,14]
[359951599,1746445859292,-400.0,0.0003589,14]
[359951601,1746445859301,-517.85848803,0.0003589,14]
[359951603,1746445859310,-400.0,0.0003589,14]
[359951605,1746445859320,-404.24,0.0003589,14]
[359951607,1746445859330,-400.0,0.0003589,14]
[359951609,1746445859339,-400.0,0.0003589,14]
[359951612,1746445859350,-400.0,0.0003589,14]
[359951614,1746445859363,-400.0,0.0003589,14]
[359951615,1746445859372,-400.0,0.0003589,14]
[359951617,1746445859382,-400.0,0.0003589,14]
[359951619,1746445859391,-400.0,0.0003589,14]
[359951621,1746445859402,-400.0,0.0003589,14]
[359951623,1746445859412,-400.0,0.0003589,14]
[359951626,1746445859422,-400.0,0.0003589,14]
[359951627,1746445859431,-1812.36,0.0003589,14]
[359951629,1746445859441,-400.0,0.0003589,14]
[359951632,1746445859451,-400.0,0.0003589,14]
[359951633,1746445859460,-400.0,0.0003589,14]
[359951635,1746445859469,-29855.5,0.0003589,14]
[359951648,1746445859579,-400.0,0.0003589,14]
[359951650,1746445859588,-1426.81,0.0003589,14]
[359951652,1746445859597,-400.0,0.0003589,14]
[359951654,1746445859607,-400.0,0.0003589,8]
[359951656,1746445859616,-400.0,0.0003589,14]
[359951658,1746445859627,-400.0,0.0003589,14]
[359951660,1746445859636,-400.0,0.0003589,14]
[359951662,1746445859645,-400.0,0.0003589,14]
[359951664,1746445859655,-400.0,0.0003589,14]
[359951666,1746445859664,-400.0,0.0003589,14]
[359951668,1746445859673,-549.22817783,0.0003589,14]
[359951670,1746445859683,-151.0,0.0003589,14]
[359951672,1746445859692,-400.0,0.0003589,14]
[359951674,1746445859701,-855.38,0.0003589,14]
[359951676,1746445859711,-362.29280791,0.0003589,14]
[359951678,1746445859720,-400.0,0.0003589,14]
[359951680,1746445859729,-400.0,0.0003589,14]
[359951682,1746445859739,-2479.52,0.0003589,14]
[359951684,1746445859748,-151.0,0.0003589,14]
[359951685,1746445859757,-400.0,0.0003589,14]
[359951686,1746445859767,-400.0,0.0003589,14]
[359951687,1746445859775,-321.38530362,0.0003589,14]
[359951688,1746445859786,-400.0,0.0003589,14]
[359951689,1746445859794,-400.0,0.0003589,14]
[359951690,1746445859803,-400.0,0.0003589,14]
[359951691,1746445859814,-400.0,0.0003589,14]
[359951692,1746445859823,-1796.47,0.0003589,14]
[359951693,1746445859832,-413.81766193,0.0003589,14]
[359951694,1746445859841,-400.0,0.0003589,14]
[359951695,1746445859852,-1141.43,0.0003589,14]
[359951697,1746445859861,-400.0,0.0003589,14]
[359951699,1746445859871,-400.0,0.0003589,14]
[359951701,1746445859880,-447.17,0.0003589,14]
[359951703,1746445859889,-2955.02,0.0003589,14]
[359951705,1746445859899,-400.0,0.0003589,14]
[359951707,1746445859908,-400.0,0.0003589,14]
[359951709,1746445859917,-400.0,0.0003589,14]
[359951711,1746445859927,-7976.56,0.0003589,14]
[359951713,1746445859936,-400.0,0.0003589,2]
[359951715,1746445859945,-12535.79,0.0003589,14]
[359951717,1746445859954,-400.0,0.0003589,14]
[359951719,1746445859964,-400.0,0.0003589,14]
[359951721,1746445859973,-524.37,0.0003589,14]
[359951723,1746445859983,-526.88,0.0003589,14]
[359951725,1746445859992,-400.0,0.0003589,2]
[359951727,1746445860002,-400.0,0.0003589,14]
[359951729,1746445860011,-400.0,0.0003589,14]
[359951731,1746445860020,-400.0,0.0003589,14]
[359951733,1746445860029,-400.0,0.0003589,14]
[359951735,1746445860039,-400.0,0.0003589,14]
[359951737,1746445860049,-385.5238577,0.000359,33]
[359951739,1746445860059,-433.37885088,0.00035907,3]
[359951741,1746445860069,-2162.0,0.00035917,14]
[359951743,1746445860079,-2162.0,0.00035945,14]
[359951745,1746445860089,-2162.0,0.00035972,14]
[359951747,1746445860098,-1741.294766,0.00035999,2]
[359951749,1746445860107,-1741.294766,0.00035999,2]
[359951751,1746445860117,-2162.0,0.00036,14]
[359951753,1746445860126,-500.0,0.00036,30]
[359951755,1746445860135,-200.0,0.00036,120]
[359951757,1746445860145,-160.0,0.00036,3]
[359951759,1746445860155,-3813.0,0.00036,2]
[359951761,1746445860165,-2162.0,0.00036027,14]
[359951763,1746445860175,-151.0,0.00036054,14]
[359951765,1746445860184,-245.419186,0.00036054,14]
[359951768,1746445860195,-2162.0,0.00036054,14]
[359951770,1746445860205,-385.52385753,0.00036072,34]
[359951772,1746445860215,-1000.0,0.00036079,5]
[359951774,1746445860228,-582.66353074,0.00036082,14]
[359951777,1746445860247,-722.9395343,0.00036082,14]
[359951794,1746445860412,-400.0,0.00035616,14]
[359951796,1746445860422,-402.38978309,0.00035616,5]
[359951798,1746445860432,-400.0,0.00035616,2]
[359951800,1746445860442,-400.0,0.0003589,14]
[359951802,1746445860451,-856.39693496,0.00036082,14]
[359951804,1746445860461,-218.808061,0.00036082,14]
[359951806,1746445860471,-218.808061,0.00036082,14]
[359951808,1746445860480,-1100.0,0.00036082,60]
[359951810,1746445860490,-2162.0,0.00036109,14]
[359951812,1746445860499,-2162.0,0.00036137,14]
[359951814,1746445860507,-392.74282349,0.00036142,2]
[359951816,1746445860517,-1733.51540352,0.00036154,3]
[359951818,1746445860527,-2162.0,0.00036164,14]
[359951820,1746445860536,-151.0,0.00036164,14]
[359951822,1746445860545,-186.219661,0.00036164,14]
[359951824,1746445860554,-374.630852,0.00036164,14]
[359951826,1746445860563,-374.63085,0.00036164,14]
[359951828,1746445860572,-201.927658,0.00036164,14]
[359951830,1746445860581,-400.0,0.00036164,14]
[359951832,1746445860591,-400.0,0.00036164,14]
[359951834,1746445860600,-400.0,0.00036164,14]
[359951836,1746445860609,-400.0,0.00036164,14]
[359951838,1746445860618,-400.0,0.00036164,14]
[359951840,1746445860628,-400.0,0.00036164,14]
[359951842,1746445860637,-400.0,0.00036164,14]
[359951844,1746445860646,-400.0,0.00036164,14]
[359951846,1746445860655,-400.0,0.00036164,14]
[359951848,1746445860664,-400.0,0.00036164,14]
[359951850,1746445860673,-406.91929102,0.00036164,14]
[359951852,1746445860682,-400.0,0.00036164,14]
[359951854,1746445860691,-400.0,0.00036164,14]
[359951856,1746445860700,-400.0,0.00036164,14]
[359951858,1746445860709,-400.0,0.00036164,14]
[359951859,1746445860718,-400.0,0.00036164,14]
[359951862,1746445860728,-400.0,0.00036164,14]
[359951864,1746445860737,-402.03251406,0.00036164,14]
[359951866,1746445860746,-400.0,0.00036164,14]
[359951868,1746445860755,-151.0,0.00036164,14]
[359951870,1746445860764,-151.0,0.00036164,14]
[359951872,1746445860774,-400.0,0.00036164,14]
[359951874,1746445860784,-414.70580701,0.00036164,14]
[359951876,1746445860793,-151.0,0.00036164,14]
[359951878,1746445860802,-403.12327759,0.00036164,14]
[359951880,1746445860812,-400.0,0.00036164,14]
[359951882,1746445860821,-400.0,0.00036164,14]
[359951884,1746445860831,-400.0,0.00036164,14]
[359951886,1746445860841,-400.0,0.00036164,14]
[359951888,1746445860850,-311.06827298,0.00036164,14]
[359951890,1746445860859,-400.0,0.00036164,14]
[359951892,1746445860868,-400.0,0.00036164,14]
[359951894,1746445860878,-400.0,0.00036164,14]
[359951896,1746445860888,-151.0,0.00036164,14]
[359951898,1746445860897,-151.0,0.00036164,14]
[359951900,1746445860906,-151.0,0.00036164,14]
[359951902,1746445860915,-402.66919914,0.00036164,14]
[359951904,1746445860924,-400.0,0.00036164,14]
[359951906,1746445860933,-400.0,0.00036164,14]
[359951908,1746445860942,-400.0,0.00036164,14]
[359951910,1746445860952,-752.32,0.00036164,14]
[359951912,1746445860962,-400.0,0.00036164,14]
[359951914,1746445860972,-400.0,0.00036164,14]
[359951916,1746445860981,-165.634663,0.00036164,14]
[359951918,1746445860991,-165.634663,0.00036164,14]
[359951920,1746445861000,-400.0,0.00036164,14]
[359951922,1746445861009,-165.634663,0.00036164,14]
[359951924,1746445861019,-400.0,0.00036164,14]
[359951926,1746445861028,-165.634663,0.00036164,14]
[359951928,1746445861037,-165.634663,0.00036164,14]
[359951930,1746445861047,-165.634663,0.00036164,14]
[359951932,1746445861056,-400.0,0.00036164,14]
[359951934,1746445861066,-400.0,0.00036164,14]
[359951936,1746445861076,-400.0,0.00036164,14]
[359951938,1746445861085,-919.64,0.00036164,14]
[359951940,1746445861094,-400.0,0.00036164,14]
[359951942,1746445861103,-400.0,0.00036164,14]
[359951944,1746445861112,-400.0,0.00036164,14]
[359951946,1746445861122,-401.94791511,0.00036164,14]
[359951948,1746445861131,-400.0,0.00036164,14]
[359951950,1746445861139,-400.0,0.00036164,14]
[359951952,1746445861149,-400.0,0.00036164,14]
[359951954,1746445861158,-400.0,0.00036164,14]
[359951956,1746445861167,-400.0,0.00036164,14]
[359951958,1746445861175,-400.0,0.00036164,14]
[359951960,1746445861184,-400.0,0.00036164,14]
[359951962,1746445861194,-400.0,0.00036164,14]
[359951964,1746445861204,-400.0,0.00036164,14]
[359951966,1746445861213,-204.21548261,0.00036164,14]
[359951968,1746445861223,-400.0,0.00036164,14]
[359951969,1746445861232,-400.0,0.00036164,14]
[359951971,1746445861242,-400.0,0.00036164,14]
[359951973,1746445861252,-400.0,0.00036164,14]
[359951976,1746445861261,-400.0,0.00036164,14]
[359951977,1746445861271,-400.0,0.00036164,14]
[359951979,1746445861280,-400.0,0.00036164,14]
[359951981,1746445861290,-400.0,0.00036164,14]
[359951984,1746445861300,-400.0,0.00036164,14]
[359951986,1746445861310,-400.0,0.00036164,14]
[359951987,1746445861320,-400.0,0.00036164,14]
[359951989,1746445861329,-400.0,0.00036164,14]
[359951991,1746445861339,-400.0,0.00036164,14]
[359951993,1746445861349,-744.69,0.00036164,14]
[359951996,1746445861362,-514.74708525,0.00036164,14]
[359951998,1746445861372,-400.0,0.00036164,14]
[359952000,1746445861381,-400.0,0.00036164,14]
[359952002,1746445861391,-400.0,0.00036164,14]
[359952004,1746445861401,-1440.06,0.00036164,14]
[359952006,1746445861411,-400.0,0.00036164,14]
[359952007,1746445861420,-400.0,0.00036164,14]
[359952010,1746445861432,-400.0,0.00036164,14]
[359952012,1746445861442,-400.0,0.00036164,14]
[359952013,1746445861451,-400.0,0.00036164,14]
[359952016,1746445861461,-404.66497173,0.00036164,14]
[359952028,1746445861566,-400.0,0.00036164,14]
[359952030,1746445861576,-506.06089301,0.00036164,14]
[359952032,1746445861586,-400.0,0.00036164,14]
[359952034,1746445861595,-403.58113953,0.00036164,14]
[359952036,1746445861605,-459.61,0.00036164,14]
[359952038,1746445861614,-400.0,0.00036164,14]
[359952040,1746445861624,-400.0,0.00036164,14]
[359952042,1746445861633,-400.0,0.00036164,14]
[359952044,1746445861642,-400.0,0.00036164,14]
[359952046,1746445861652,-1757.66,0.00036164,14]
[359952048,1746445861661,-464.51100371,0.00036164,2]
[359952049,1746445861670,-400.0,0.00036164,14]
[359952052,1746445861680,-973.01,0.00036164,14]
[359952054,1746445861691,-400.0,0.00036164,14]
[359952056,1746445861701,-400.0,0.00036164,14]
[359952058,1746445861710,-400.0,0.00036164,14]
[359952060,1746445861720,-199.76863,0.00036164,2]
[359952062,1746445861730,-400.0,0.00036164,14]
[359952064,1746445861740,-400.0,0.00036164,14]
[359952066,1746445861749,-400.0,0.00036164,14]
[359952068,1746445861759,-400.0,0.00036164,14]
[359952070,1746445861768,-400.0,0.00036164,14]
[359952072,1746445861778,-400.0,0.00036164,14]
[359952074,1746445861788,-400.0,0.00036164,14]
[359952076,1746445861798,-400.0,0.00036164,14]
[359952078,1746445861807,-400.0,0.00036164,14]
[359952080,1746445861819,-595.45,0.00036164,14]
[359952083,1746445861830,-300.0,0.00036164,14]
[359952085,1746445861840,-400.0,0.00036164,14]
[359952087,1746445861849,-400.0,0.00036164,14]
[359952089,1746445861859,-1163.63,0.00036164,14]
[359952091,1746445861868,-400.0,0.00036164,14]
[359952093,1746445861877,-300.0,0.00036164,14]
[359952095,1746445861886,-931.15,0.00036164,14]
[359952097,1746445861896,-400.0,0.00036164,14]
[359952099,1746445861906,-400.0,0.00036164,14]
[359952101,1746445861915,-424.79,0.00036164,14]
[359952103,1746445861924,-151.0,0.00036164,14]
[359952105,1746445861934,-151.0,0.00036164,14]
[359952107,1746445861944,-550.538839,0.00036164,14]
[359952109,1746445861953,-550.538839,0.00036164,14]
[359952111,1746445861962,-550.538839,0.00036164,14]
[359952113,1746445861971,-754.93,0.00036164,14]
[359952115,1746445861981,-400.0,0.00036164,14]
[359952117,1746445861991,-400.0,0.00036164,14]
[359952118,1746445862000,-550.538839,0.00036164,14]
[359952119,1746445862011,-550.538839,0.00036164,14]
[359952120,1746445862020,-400.0,0.00036164,14]
[359952121,1746445862030,-550.53883997,0.00036164,14]
[359952122,1746445862040,-435.98,0.00036164,14]
[359952123,1746445862049,-400.0,0.00036164,14]
[359952124,1746445862059,-467.97,0.00036164,14]
[359952125,1746445862069,-534.36,0.00036164,14]